[Event "HUN-ch Rapid 2019"]
[Site "Ajka"]
[Date "2019.07.20"]
[Round "7.19"]
[White "Marosi, Levente"]
[Black "Bodi, Tibor"]
[Result "1/2-1/2"]
[ECO "B04"]
[WhiteElo "2225"]
[BlackElo "2244"]
[Annotator "NA"]
[PlyCount "28"]
[EventDate "2019.07.18"]
[EventType "swiss"]
[EventCountry "HUN"]
[SourceTitle "playchess.com"]
[Source "ChessBase"]
[SourceQuality "1"]
[TimeControl "1200+5"]

1. e4 {[%emt 0:00:02]} Nf6 {[%emt 0:00:03]} 2. e5 {[%emt 0:00:02]} Nd5 {[%emt 0:00:01]} 3. d4 d6 4. Nf3 {[%emt 0:00:03]} Nb6 {[%emt 0:00:01]} 5. a4 {[%emt 0:00:02]} a5 {[%emt 0:00:01]} 6. Nc3 {[%emt 0:00:02]} g6 {[%emt 0:00:15]} 7. Bd3 {[%emt 0:00:07]} Bg7 {[%emt 0:00:07]} 8. exd6 {[%emt 0:00:08]} cxd6 {[%emt 0:00:02]} 9. h3 {[%emt 0:00:04]} Nc6 {[%emt 0:00:05]} 10. O-O {[%emt 0:00:25]} O-O {[%emt 0:00:01]} 11. Nb5 {[%emt 0:00:06]} Nb4 {[%emt 0:00:05]} 12. Be2 {[%emt 0:00:34]} Bf5 {[%emt 0:00:09]} 13. c3 {[%emt 0:00:01]} N4d5 {[%emt 0:00:07]} 14. Re1 {[%emt 0:00:19]} Rc8 {[%emt 0:00:30]} 1/2-1/2

[Event "HUN-ch Rapid 2019"]
[Site "Ajka"]
[Date "2019.07.20"]
[Round "8.1"]
[White "Almasi, Zoltan"]
[Black "Mihok, Oliver"]
[Result "1-0"]
[ECO "A05"]
[WhiteElo "2687"]
[BlackElo "2550"]
[Annotator "RC"]
[PlyCount "109"]
[EventDate "2019.07.18"]
[EventType "swiss"]
[EventCountry "HUN"]
[SourceTitle "playchess.com"]
[Source "ChessBase"]
[SourceQuality "1"]
[TimeControl "1200+5"]

1. Nf3 {[%emt 0:00:03]} Nf6 {[%emt 0:00:01]} 2. c4 {[%emt 0:00:02]} g6 {[%emt 0:00:01]} 3. b3 {[%emt 0:00:03]} Bg7 {[%emt 0:00:07]} 4. Bb2 {[%emt 0:00:01]} O-O {[%emt 0:00:08]} 5. g3 {[%emt 0:00:02]} d6 {[%emt 0:00:08]} 6. Bg2 {[%emt 0:00:03]} e5 {[%emt 0:00:10]} 7. d3 {[%emt 0:00:02]} Re8 {[%emt 0:00:59]} 8. O-O {[%emt 0:00:06]} a5 {[%emt 0:00:17]} 9. Nc3 {[%emt 0:00:59]} c6 {[%emt 0:00:07]} 10. a3 {[%emt 0:02:21]} d5 {[%emt 0:00:25]} 11. e3 {[%emt 0:00:48]} Bf5 {[%emt 0:01:43]} 12. Rc1 {[%emt 0:04:09]} dxc4 {[%emt 0:02:09]} 13. dxc4 {[%emt 0:00:04]} Bd3 {[%emt 0:00:04]} 14. Ne2 {[%emt 0:00:12]} e4 {[%emt 0:01:55]} 15. Ne1 {[%emt 0:00:03]} Bxe2 {[%emt 0:00:32]} 16. Qxe2 {[%emt 0:00:01]} Nbd7 {[%emt 0:00:15]} 17. b4 {[%emt 0:01:21]} axb4 {[%emt 0:00:19]} 18. axb4 {[%emt 0:00:00]} Ne5 {[%emt 0:00:28]} 19. Bd4 {[%emt 0:01:08]} Qe7 {[%emt 0:00:59]} 20. Qb2 {[%emt 0:00:20]} Qe6 {[%emt 0:00:22]} 21. Qc3 {[%emt 0:00:31]} b5 {[%emt 0:00:23]} 22. Bxe5 {[%emt 0:01:05]} Qxe5 {[%emt 0:00:03]} 23. Qxe5 {[%emt 0:00:01]} Rxe5 {[%emt 0:00:02]} 24. Nc2 {[%emt 0:00:01]} bxc4 {[%emt 0:04:41]} 25. Nd4 {[%emt 0:00:02]} c5 {[%emt 0:00:06]} 26. Nc6 {[%emt 0:00:16]} Re6 {[%emt 0:00:01]} 27. b5 {[%emt 0:00:02]} Nd7 {[%emt 0:00:53]} 28. Rxc4 {[%emt 0:00:11]} f5 {[%emt 0:00:32]} 29. Rd1 {[%emt 0:00:08]} Ra1 {[%emt 0:00:21]} 30. Rxa1 {[%emt 0:00:42]} Bxa1 {[%emt 0:00:05]} 31. Ra4 {[%emt 0:00:09]} Bf6 {[%emt 0:00:14]} 32. Bf1 {[%emt 0:00:22]} Rd6 {[%emt 0:00:12]} 33. Ra7 {[%emt 0:00:39]} Ne5 {[%emt 0:00:44]} 34. Nxe5 {[%emt 0:00:25]} Bxe5 {[%emt 0:00:01]} 35. Bc4+ {[%emt 0:00:01]} Kh8 {[%emt 0:00:06]} 36. Re7 {[%emt 0:00:13]} Bc3 {[%emt 0:00:46]} 37. Rc7 {[%emt 0:00:37]} Bb4 {[%emt 0:00:11]} 38. h4 {[%emt 0:00:36]} h5 {[%emt 0:00:33]} 39. Kg2 {[%emt 0:00:03]} Rf6 {[%emt 0:00:55]} 40. f3 {[%emt 0:01:22]} exf3+ {[%emt 0:00:06]} 41. Kxf3 {[%emt 0:00:02]} Rd6 {[%emt 0:00:11]} 42. Kf4 {[%emt 0:00:09]} Bd2 {[%emt 0:00:08]} 43. Ke5 {[%emt 0:00:07]} Rd8 {[%emt 0:00:34]} 44. b6 {[%emt 0:01:21]} Ba5 {[%emt 0:00:12]} 45. Rc6 {[%emt 0:00:02]} Kg7 {[%emt 0:00:20]} 46. b7 {[%emt 0:00:06]} Rb8 {[%emt 0:00:07]} 47. Ba6 {[%emt 0:00:04]} Bc3+ {[%emt 0:00:11]} 48. Kf4 {[%emt 0:00:28]} Re8 {[%emt 0:00:06]} 49. Kg5 {[%emt 0:00:16]} Kh7 {[%emt 0:00:05]} 50. Rc8 {[%emt 0:00:18]} Re4 {[%emt 0:00:01]} 51. Be2 {[%emt 0:00:11]} Be5 {[%emt 0:00:06]} 52. b8=Q {[%emt 0:00:42]} Bxb8 {[%emt 0:00:03]} 53. Rxb8 {[%emt 0:00:01]} Rxe3 {[%emt 0:00:02]} 54. Rb7+ {[%emt 0:00:02]} Kh8 {[%emt 0:00:04]} 55. Bc4 {[%emt 0:00:06]} 1-0

[Event "HUN-ch Rapid 2019"]
[Site "Ajka"]
[Date "2019.07.20"]
[Round "8.9"]
[White "Popovics, Adam"]
[Black "Gelle, Istvan"]
[Result "1-0"]
[ECO "D15"]
[WhiteElo "2365"]
[BlackElo "2325"]
[Annotator "ChessBase"]
[PlyCount "65"]
[EventDate "2019.07.18"]
[EventType "swiss"]
[EventCountry "HUN"]
[SourceTitle "playchess.com"]
[Source "ChessBase"]
[SourceQuality "1"]
[TimeControl "1200+5"]

1. d4 {[%emt 0:00:03]} d5 {[%emt 0:00:01]} 2. c4 {[%emt 0:00:03]} c6 {[%emt 0:00:01]} 3. Nf3 {[%emt 0:00:03]} Nf6 {[%emt 0:00:01]} 4. Nc3 {[%emt 0:00:02]} a6 5. e3 Bf5 6. cxd5 cxd5 7. Qb3 b5 8. a4 b4 9. Na2 a5 10. Bb5+ Bd7 11. O-O e6 12. Bd2 Bd6 13. Qd3 O-O 14. Nc1 Ne4 15. Nb3 Qb6 16. Rfc1 Nc6 17. Rc2 Rfc8 18. Rac1 Rc7 19. Be1 Rac8 20. Nc5 Bxc5 21. dxc5 Qa7 22. Qe2 Nb8 23. Bxd7 Nxd7 24. c6 Nb8 25. Nd4 Nd6 26. f3 e5 27. Bg3 f6 28. Qd3 Kh8 29. Nb5 Nxb5 30. axb5 Rd8 31. Rc5 d4 32. exd4 Rxd4 33. Qxd4 1-0

[Event "HUN-ch Rapid 2019"]
[Site "Ajka"]
[Date "2019.07.20"]
[Round "8.13"]
[White "Nemeth, Zoltan"]
[Black "Jakab, Attila"]
[Result "1/2-1/2"]
[ECO "A04"]
[WhiteElo "2275"]
[BlackElo "2377"]
[Annotator "ChessBase"]
[PlyCount "63"]
[EventDate "2019.07.18"]
[EventType "swiss"]
[EventCountry "HUN"]
[SourceTitle "playchess.com"]
[Source "ChessBase"]
[SourceQuality "1"]
[TimeControl "1200+5"]

1. Nf3 {[%emt 0:00:05]} e6 {[%emt 0:00:46]} 2. g3 {[%emt 0:00:03]} b6 {[%emt 0:00:01]} 3. Bg2 {[%emt 0:00:01]} Bb7 {[%emt 0:00:02]} 4. O-O {[%emt 0:00:02]} Nf6 {[%emt 0:00:01]} 5. c4 {[%emt 0:00:07]} Be7 {[%emt 0:00:02]} 6. b3 {[%emt 0:00:02]} O-O {[%emt 0:00:03]} 7. Bb2 {[%emt 0:00:00]} d5 {[%emt 0:00:35]} 8. Ne5 {[%emt 0:00:05]} Nbd7 {[%emt 0:00:06]} 9. Nxd7 {[%emt 0:00:11]} Qxd7 {[%emt 0:00:03]} 10. cxd5 {[%emt 0:00:23]} Nxd5 {[%emt 0:00:22]} 11. Nc3 {[%emt 0:00:11]} Rfd8 {[%emt 0:00:03]} 12. Nxd5 Bxd5 {[%emt 0:00:15]} 13. Bxd5 {[%emt 0:00:07]} Qxd5 {[%emt 0:00:06]} 14. d3 {[%emt 0:00:00]} h5 {[%emt 0:01:54]} 15. Qc2 {[%emt 0:00:10]} c5 {[%emt 0:02:53]} 16. Qc4 {[%emt 0:00:09]} Qf5 {[%emt 0:00:06]} 17. Kg2 {[%emt 0:00:56]} h4 {[%emt 0:00:11]} 18. h3 {[%emt 0:00:38]} Bf6 {[%emt 0:02:11]} 19. Bxf6 {[%emt 0:00:19]} Qxf6 {[%emt 0:00:01]} 20. Qxh4 {[%emt 0:00:12]} Qxh4 {[%emt 0:00:29]} 21. gxh4 {[%emt 0:00:02]} Rd4 {[%emt 0:00:01]} 22. Kg3 {[%emt 0:00:13]} Rad8 {[%emt 0:00:02]} 23. Rac1 {[%emt 0:00:02]} e5 {[%emt 0:00:58]} 24. Rc4 {[%emt 0:00:11]} R8d6 {[%emt 0:00:23]} 25. Rxd4 {[%emt 0:00:20]} exd4 {[%emt 0:00:01]} 26. Re1 {[%emt 0:02:49]} Rg6+ {[%emt 0:00:09]} 27. Kf3 {[%emt 0:00:54]} Rf6+ {[%emt 0:00:04]} 28. Kg3 {[%emt 0:00:04]} Rg6+ {[%emt 0:00:01]} 29. Kh2 {[%emt 0:01:00]} Rf6 {[%emt 0:00:02]} 30. Kg2 {[%emt 0:00:10]} Rg6+ {[%emt 0:00:09]} 31. Kf3 {[%emt 0:00:57]} Rf6+ {[%emt 0:00:03]} 32. Kg3 {[%emt 0:00:01]} 1/2-1/2

[Event "HUN-ch Rapid 2019"]
[Site "Ajka"]
[Date "2019.07.20"]
[Round "8.14"]
[White "Bodi, Tibor"]
[Black "Dankhazi, Andras"]
[Result "1/2-1/2"]
[ECO "C29"]
[WhiteElo "2244"]
[BlackElo "2277"]
[Annotator "ChessBase"]
[PlyCount "93"]
[EventDate "2019.07.18"]
[EventType "swiss"]
[EventCountry "HUN"]
[SourceTitle "playchess.com"]
[Source "ChessBase"]
[SourceQuality "1"]
[TimeControl "1200+5"]

1. e4 {[%emt 0:00:03]} e5 {[%emt 0:00:07]} 2. Nc3 {[%emt 0:00:06]} Nf6 {[%emt 0:00:03]} 3. f4 {[%emt 0:00:02]} d5 {[%emt 0:00:01]} 4. fxe5 {[%emt 0:00:02]} Nxe4 {[%emt 0:00:01]} 5. Qf3 {[%emt 0:00:02]} Nc6 {[%emt 0:01:04]} 6. Nxe4 {[%emt 0:01:11]} Nd4 {[%emt 0:00:12]} 7. Qc3 {[%emt 0:03:23]} dxe4 {[%emt 0:00:06]} 8. Ne2 {[%emt 0:00:34]} c5 {[%emt 0:01:47]} 9. Ng3 {[%emt 0:04:19]} Qd5 {[%emt 0:01:07]} 10. Bc4 {[%emt 0:00:58]} Qxe5 {[%emt 0:00:05]} 11. O-O {[%emt 0:00:08]} Be6 {[%emt 0:00:16]} 12. Bxe6 {[%emt 0:00:54]} Qxe6 {[%emt 0:00:05]} 13. d3 {[%emt 0:00:53]} Bd6 {[%emt 0:04:57]} 14. Bf4 {[%emt 0:00:21]} O-O {[%emt 0:02:12]} 15. Bxd6 {[%emt 0:00:17]} Qxd6 {[%emt 0:00:02]} 16. Nxe4 {[%emt 0:00:15]} Qd5 {[%emt 0:00:58]} 17. Qxc5 {[%emt 0:00:49]} Qxc5 {[%emt 0:00:01]} 18. Nxc5 {[%emt 0:00:01]} b6 {[%emt 0:00:16]} 19. c3 {[%emt 0:00:32]} bxc5 {[%emt 0:00:24]} 20. cxd4 {[%emt 0:00:01]} cxd4 {[%emt 0:00:01]} 21. Rac1 {[%emt 0:00:22]} Rfc8 {[%emt 0:00:34]} 22. Kf2 {[%emt 0:00:07]} Kf8 {[%emt 0:00:14]} 23. Kf3 {[%emt 0:01:21]} Re8 {[%emt 0:00:08]} 24. Rfe1 {[%emt 0:00:02]} Rxe1 {[%emt 0:00:03]} 25. Rxe1 {[%emt 0:00:01]} Rc8 {[%emt 0:00:00]} 26. Re5 {[%emt 0:00:23]} Rc2 {[%emt 0:00:14]} 27. Ra5 {[%emt 0:00:09]} Rxb2 {[%emt 0:00:01]} 28. Rxa7 {[%emt 0:00:02]} f5 {[%emt 0:00:02]} 29. Ra4 {[%emt 0:02:21]} Rd2 {[%emt 0:00:11]} 30. Rxd4 {[%emt 0:00:04]} Rxa2 {[%emt 0:00:01]} 31. Rd7 {[%emt 0:00:04]} Rd2 {[%emt 0:00:04]} 32. h4 {[%emt 0:00:05]} g6 {[%emt 0:00:41]} 33. g3 {[%emt 0:00:17]} Ke8 {[%emt 0:00:19]} 34. Rxh7 {[%emt 0:00:15]} Rxd3+ {[%emt 0:00:01]} 35. Kf4 {[%emt 0:00:18]} Rd4+ {[%emt 0:00:01]} 36. Ke5 {[%emt 0:00:13]} Rg4 {[%emt 0:00:20]} 37. Ke6 Kd8 38. Rd7+ {[%emt 0:00:50]} Ke8 {[%emt 0:00:15]} 39. Ra7 {[%emt 0:00:05]} Kd8 {[%emt 0:00:03]} 40. Ra8+ {[%emt 0:00:27]} Kc7 {[%emt 0:00:00]} 41. Ra3 {[%emt 0:00:02]} f4 {[%emt 0:00:05]} 42. gxf4 {[%emt 0:00:19]} Rxf4 {[%emt 0:00:01]} 43. Rh3 {[%emt 0:00:09]} Kd8 {[%emt 0:00:06]} 44. Ke5 {[%emt 0:00:04]} Rf5+ {[%emt 0:00:04]} 45. Ke6 {[%emt 0:00:03]} Rf4 {[%emt 0:00:02]} 46. Ke5 {[%emt 0:00:14]} Rf5+ {[%emt 0:00:01]} 47. Ke6 {[%emt 0:00:07]} 1/2-1/2

[Event "HUN-ch Rapid 2019"]
[Site "Ajka"]
[Date "2019.07.20"]
[Round "8.16"]
[White "Amrein, Roland"]
[Black "Varga, Peter"]
[Result "0-1"]
[ECO "B12"]
[WhiteElo "2198"]
[BlackElo "2367"]
[Annotator "ChessBase"]
[PlyCount "87"]
[EventDate "2019.07.18"]
[EventType "swiss"]
[EventCountry "HUN"]
[SourceTitle "playchess.com"]
[Source "ChessBase"]
[SourceQuality "1"]
[TimeControl "1200+5"]

1. e4 {[%emt 0:00:02]} c6 {[%emt 0:00:05]} 2. d4 {[%emt 0:00:05]} d5 {[%emt 0:00:00]} 3. e5 {[%emt 0:00:05]} Bf5 {[%emt 0:00:00]} 4. h4 {[%emt 0:00:06]} h6 {[%emt 0:00:40]} 5. g4 {[%emt 0:00:04]} Bc8 {[%emt 0:00:03]} 6. c4 {[%emt 0:01:02]} e6 {[%emt 0:00:13]} 7. Nc3 {[%emt 0:00:13]} Ne7 {[%emt 0:00:22]} 8. Nf3 {[%emt 0:00:53]} dxc4 {[%emt 0:00:20]} 9. Bxc4 {[%emt 0:00:01]} Nd5 {[%emt 0:00:01]} 10. Ne4 {[%emt 0:01:24]} Nd7 {[%emt 0:00:58]} 11. Kf1 {[%emt 0:00:23]} Be7 {[%emt 0:00:34]} 12. Kg2 {[%emt 0:00:04]} c5 {[%emt 0:02:15]} 13. a3 {[%emt 0:02:10]} cxd4 {[%emt 0:00:23]} 14. Qxd4 {[%emt 0:00:03]} N7b6 {[%emt 0:00:04]} 15. Bb5+ {[%emt 0:02:20]} Bd7 {[%emt 0:00:02]} 16. Bxd7+ {[%emt 0:00:10]} Qxd7 {[%emt 0:00:23]} 17. Bd2 {[%emt 0:00:13]} O-O-O {[%emt 0:01:44]} 18. Rhd1 {[%emt 0:03:26]} Qa4 {[%emt 0:01:07]} 19. Rdc1+ {[%emt 0:02:15]} Kb8 {[%emt 0:00:06]} 20. Qxa4 {[%emt 0:00:04]} Nxa4 {[%emt 0:00:01]} 21. b3 {[%emt 0:00:42]} Nab6 {[%emt 0:00:15]} 22. a4 {[%emt 0:01:23]} Rc8 {[%emt 0:01:07]} 23. Nd4 {[%emt 0:00:08]} Rxc1 {[%emt 0:01:01]} 24. Rxc1 {[%emt 0:00:01]} Bxh4 {[%emt 0:00:19]} 25. a5 {[%emt 0:00:33]} Nd7 {[%emt 0:00:23]} 26. f4 {[%emt 0:00:01]} Be7 {[%emt 0:00:32]} 27. a6 {[%emt 0:00:02]} Rc8 {[%emt 0:01:18]} 28. Rxc8+ {[%emt 0:00:20]} Kxc8 {[%emt 0:00:01]} 29. axb7+ Kxb7 {[%emt 0:00:01]} 30. Nb5 {[%emt 0:00:01]} Nc5 {[%emt 0:01:27]} 31. Nbd6+ {[%emt 0:00:20]} Bxd6 {[%emt 0:00:02]} 32. Nxd6+ {[%emt 0:00:03]} Kc6 {[%emt 0:00:00]} 33. Kf3 {[%emt 0:00:49]} Nxb3 {[%emt 0:00:05]} 34. Be1 {[%emt 0:00:18]} a5 {[%emt 0:00:41]} 35. Bxa5 {[%emt 0:00:07]} Nxa5 {[%emt 0:00:02]} 36. Nxf7 {[%emt 0:00:01]} Nc4 {[%emt 0:00:21]} 37. f5 {[%emt 0:00:07]} Kd7 {[%emt 0:00:31]} 38. g5 {[%emt 0:01:37]} hxg5 39. f6 {[%emt 0:00:35]} Nxf6 {[%emt 0:01:21]} 40. Nxg5 {[%emt 0:00:10]} Nxe5+ {[%emt 0:00:11]} 41. Kf4 {[%emt 0:00:01]} Ng6+ {[%emt 0:00:03]} 42. Ke3 {[%emt 0:00:02]} e5 {[%emt 0:00:06]} 43. Nf3 {[%emt 0:00:03]} Ke6 {[%emt 0:00:04]} 44. Nd2 {[%emt 0:00:01]} 0-1

[Event "HUN-ch Rapid 2019"]
[Site "Ajka"]
[Date "2019.07.20"]
[Round "8.17"]
[White "Hardicsay, Peter"]
[Black "Egresi, Mate"]
[Result "1/2-1/2"]
[ECO "D25"]
[WhiteElo "2185"]
[BlackElo "2341"]
[Annotator "ChessBase"]
[PlyCount "120"]
[EventDate "2019.07.18"]
[EventType "swiss"]
[EventCountry "HUN"]
[SourceTitle "playchess.com"]
[Source "ChessBase"]
[SourceQuality "1"]
[TimeControl "1200+5"]

1. d4 {[%emt 0:00:05]} d5 {[%emt 0:00:05]} 2. Nf3 {[%emt 0:00:05]} Nf6 {[%emt 0:00:05]} 3. c4 {[%emt 0:00:05]} dxc4 {[%emt 0:00:05]} 4. e3 {[%emt 0:00:05]} Be6 {[%emt 0:00:05]} 5. Nbd2 {[%emt 0:00:05]} c5 {[%emt 0:00:05]} 6. Bxc4 {[%emt 0:01:54]} Bxc4 {[%emt 0:00:01]} 7. Nxc4 {[%emt 0:00:03]} cxd4 {[%emt 0:00:01]} 8. Qxd4 {[%emt 0:00:03]} Nc6 {[%emt 0:00:01]} 9. Qxd8+ {[%emt 0:00:47]} Rxd8 {[%emt 0:00:01]} 10. Ke2 {[%emt 0:00:41]} g6 {[%emt 0:00:16]} 11. Bd2 {[%emt 0:02:05]} Bg7 {[%emt 0:00:06]} 12. Bc3 {[%emt 0:00:56]} O-O {[%emt 0:00:50]} 13. Rhd1 {[%emt 0:00:09]} b5 {[%emt 0:00:15]} 14. Nce5 {[%emt 0:02:22]} Rc8 {[%emt 0:01:52]} 15. Nxc6 {[%emt 0:00:18]} Rxc6 {[%emt 0:00:02]} 16. Nd4 {[%emt 0:00:32]} Rb6 {[%emt 0:01:01]} 17. Ba5 {[%emt 0:02:14]} Ra6 {[%emt 0:01:29]} 18. Bb4 {[%emt 0:00:27]} Nd5 {[%emt 0:00:14]} 19. Bc5 {[%emt 0:00:22]} Rc8 {[%emt 0:00:28]} 20. Rdc1 {[%emt 0:00:14]} e6 {[%emt 0:01:21]} 21. a3 {[%emt 0:00:30]} Bxd4 {[%emt 0:02:42]} 22. Bxd4 {[%emt 0:00:05]} Rac6 {[%emt 0:00:01]} 23. Rxc6 {[%emt 0:00:28]} Rxc6 {[%emt 0:00:01]} 24. Kd2 {[%emt 0:00:16]} a6 {[%emt 0:00:05]} 25. Rc1 {[%emt 0:00:24]} Rxc1 {[%emt 0:00:01]} 26. Kxc1 {[%emt 0:00:01]} Kf8 {[%emt 0:00:02]} 27. Kc2 {[%emt 0:00:17]} Ke7 {[%emt 0:00:02]} 28. e4 {[%emt 0:00:41]} Nc7 {[%emt 0:00:54]} 29. Be5 {[%emt 0:00:27]} Na8 {[%emt 0:01:16]} 30. b3 {[%emt 0:00:21]} Kd7 {[%emt 0:00:09]} 31. Kc3 {[%emt 0:00:14]} Kc6 {[%emt 0:00:09]} 32. f3 {[%emt 0:00:17]} Nb6 {[%emt 0:00:12]} 33. Kb4 {[%emt 0:00:16]} Nd7 {[%emt 0:00:50]} 34. Bd4 {[%emt 0:00:17]} f5 {[%emt 0:00:42]} 35. exf5 {[%emt 0:00:05]} gxf5 {[%emt 0:00:36]} 36. a4 {[%emt 0:00:22]} e5 {[%emt 0:00:32]} 37. axb5+ {[%emt 0:00:19]} axb5 {[%emt 0:00:02]} 38. Bf2 {[%emt 0:00:17]} Nf6 {[%emt 0:00:31]} 39. Kc3 {[%emt 0:00:03]} Kd5 {[%emt 0:00:14]} 40. Bh4 {[%emt 0:00:12]} Nd7 {[%emt 0:00:27]} 41. Be7 {[%emt 0:00:33]} e4 {[%emt 0:00:15]} 42. fxe4+ {[%emt 0:00:12]} fxe4 {[%emt 0:00:04]} 43. Bg5 {[%emt 0:00:17]} Ne5 {[%emt 0:00:11]} 44. h3 {[%emt 0:00:08]} Nc6 {[%emt 0:00:42]} 45. Be3 {[%emt 0:00:33]} Ke5 {[%emt 0:00:01]} 46. g3 {[%emt 0:00:13]} Kf5 {[%emt 0:00:06]} 47. Bd2 {[%emt 0:00:08]} Ke5 {[%emt 0:00:01]} 48. Be3 {[%emt 0:00:00]} Kd5 {[%emt 0:00:01]} 49. g4 {[%emt 0:00:29]} Ke5 {[%emt 0:00:34]} 50. h4 {[%emt 0:00:18]} Kd5 {[%emt 0:00:35]} 51. Bf4 {[%emt 0:00:14]} Ke6 {[%emt 0:00:02]} 52. h5 {[%emt 0:00:07]} Kf6 {[%emt 0:00:17]} 53. Kd2 {[%emt 0:00:18]} Nd4 {[%emt 0:01:20]} 54. Ke3 {[%emt 0:00:06]} Nxb3 {[%emt 0:00:01]} 55. Kxe4 {[%emt 0:00:01]} Nc5+ {[%emt 0:00:02]} 56. Kd5 {[%emt 0:00:10]} Nd3 {[%emt 0:00:05]} 57. Be3 {[%emt 0:00:11]} b4 {[%emt 0:00:36]} 58. Ke4 {[%emt 0:00:10]} Ne1 {[%emt 0:00:37]} 59. Bd2 {[%emt 0:00:14]} Nc2 {[%emt 0:00:32]} 60. g5+ {[%emt 0:00:08]} Ke6 {[%emt 0:00:30]} 1/2-1/2

[Event "HUN-ch Rapid 2019"]
[Site "Ajka"]
[Date "2019.07.20"]
[Round "8.18"]
[White "Emodi, Barnabas"]
[Black "Bognar, Csaba"]
[Result "1-0"]
[ECO "A48"]
[WhiteElo "2365"]
[BlackElo "2166"]
[Annotator "ChessBase"]
[PlyCount "81"]
[EventDate "2019.07.18"]
[EventType "swiss"]
[EventCountry "HUN"]
[SourceTitle "playchess.com"]
[Source "ChessBase"]
[SourceQuality "1"]
[TimeControl "1200+5"]

1. d4 {[%emt 0:00:02]} Nf6 {[%emt 0:00:01]} 2. Nf3 {[%emt 0:00:01]} g6 {[%emt 0:00:02]} 3. Bg5 {[%emt 0:00:03]} Bg7 {[%emt 0:00:01]} 4. e3 {[%emt 0:00:01]} h6 {[%emt 0:00:04]} 5. Bh4 {[%emt 0:00:02]} d6 {[%emt 0:00:01]} 6. Nbd2 {[%emt 0:00:03]} Nbd7 {[%emt 0:00:03]} 7. Bc4 {[%emt 0:00:04]} O-O {[%emt 0:00:04]} 8. O-O {[%emt 0:00:03]} e5 {[%emt 0:00:03]} 9. dxe5 {[%emt 0:00:28]} dxe5 {[%emt 0:00:21]} 10. e4 {[%emt 0:00:26]} g5 {[%emt 0:01:33]} 11. Bg3 {[%emt 0:00:09]} Nh5 {[%emt 0:00:04]} 12. Re1 {[%emt 0:00:47]} Nxg3 {[%emt 0:00:57]} 13. hxg3 {[%emt 0:00:02]} Qe7 {[%emt 0:00:03]} 14. Nf1 {[%emt 0:00:11]} c6 {[%emt 0:00:26]} 15. Ne3 {[%emt 0:00:20]} Nf6 {[%emt 0:01:23]} 16. Bd3 {[%emt 0:02:37]} Be6 {[%emt 0:02:37]} 17. Qe2 {[%emt 0:00:37]} Ng4 {[%emt 0:01:28]} 18. Nf5 {[%emt 0:00:51]} Bxf5 {[%emt 0:00:16]} 19. exf5 {[%emt 0:00:01]} h5 {[%emt 0:00:17]} 20. Nh2 {[%emt 0:00:50]} Nxh2 {[%emt 0:01:14]} 21. Qxh5 {[%emt 0:00:18]} Bf6 {[%emt 0:00:31]} 22. Kxh2 {[%emt 0:01:33]} Kg7 {[%emt 0:00:02]} 23. Kg1 {[%emt 0:00:29]} Qb4 {[%emt 0:00:54]} 24. Qe2 {[%emt 0:01:09]} b6 {[%emt 0:00:36]} 25. c3 {[%emt 0:00:07]} Qc5 {[%emt 0:00:23]} 26. Be4 {[%emt 0:00:25]} Rh8 {[%emt 0:00:22]} 27. g4 {[%emt 0:00:52]} Rh6 {[%emt 0:00:28]} 28. g3 {[%emt 0:00:50]} Rah8 {[%emt 0:00:03]} 29. Rad1 {[%emt 0:00:32]} Rh2 {[%emt 0:01:32]} 30. Rd7 {[%emt 0:00:56]} a5 {[%emt 0:00:49]} 31. Qe3 {[%emt 0:00:50]} Qb5 {[%emt 0:00:26]} 32. b3 {[%emt 0:00:17]} a4 {[%emt 0:00:30]} 33. c4 {[%emt 0:00:25]} Qb4 {[%emt 0:00:39]} 34. Red1 {[%emt 0:00:26]} Be7 {[%emt 0:00:20]} 35. Bxc6 {[%emt 0:02:39]} Kf6 {[%emt 0:01:08]} 36. Bd5 {[%emt 0:00:48]} R8h7 {[%emt 0:01:17]} 37. Rxe7 {[%emt 0:00:13]} Qxe7 {[%emt 0:00:14]} 38. Qxb6+ {[%emt 0:00:09]} Kg7 {[%emt 0:00:05]} 39. Be4 {[%emt 0:00:10]} R2h6 {[%emt 0:00:52]} 40. Qd8 {[%emt 0:00:16]} Qc5 {[%emt 0:00:40]} 41. Qxg5+ {[%emt 0:00:09]} 1-0